Cogmind - Beta 16 @@@ ROGUE MODE // 2025.12.28 @ 12:51:52 Player: Compilatron Result: Self-destructed Performance ------------- Evolutions (2) 1000 Regions Visited (4) 800 Robots Destroyed (16) 80 Value Destroyed (368) 368 Prototype IDs (0) 0 Alien Tech Used (0) 0 Bonus (102) 102 TOTAL SCORE: 2350 Bonus ------- Follower Combat Kills 102 Cogmind --------- Core Integrity 321/550 Matter 214/300 Energy 100/100 System Corruption 0% Temperature Danger (493) Movement Core (450) Ox8 Location -8/Materials Parts ------- > --- POWER (1) -------- (None) > --- PROPULSION (4) --- (None) > --- UTILITY (4) ------ Large Storage Unit Hardened Light Armor Plating > --- WEAPON (2) ------- (None) > --- INVENTORY (15) --- Light Ion Engine Light Ion Engine Light Ion Engine Medium Storage Unit Hardened Light Armor Plating EM Pulse Gun Light Assault Rifle Improved Light Cannon Welding Torch Peak State ------------ > --- POWER ------------ Improved Ion Engine > --- PROPULSION ------- Light Treads Light Treads Compact Wheel > --- UTILITY ---------- Large Storage Unit Seismic Detector Medium Armor Plating Shield Generator > --- WEAPON ----------- Shotgun Assault Cannon > --- INVENTORY -------- Light Ion Engine Light Ion Engine Light Ion Engine Medium Storage Unit Hardened Light Armor Plating Hardened Light Armor Plating EM Pulse Gun Light Assault Rifle Light Assault Rifle Improved Light Cannon Welding Torch [Rating: 17] Favorites ----------- Power Light Ion Engine Engine Light Ion Engine Propulsion Light Treads Treads Light Treads Leg Aluminum Leg Wheel Compact Wheel Utility Large Storage Unit Device Seismic Detector Storage Large Storage Unit Protection Medium Armor Plating Weapon Medium Laser Energy Gun Medium Laser Ballistic Gun Assault Rifle Ballistic Cannon Assault Cannon Special Weapon Welding Torch Build | -11 -10 -9 -9 -8 ------- Run | Yrd Mat Mat Min Mat Slots Evolved 4 | . . 2 . 2 Power . | . . . . . Propulsion 2 | . . . . 2 Utility 2 | . . 2 . . Weapon . | . . . . . Parts Attached 20 | 1 6 9 . 4 Power 3 | . 1 2 . . Engine 3 | . 1 2 . . Core . | . . . . . Reactor . | . . . . . Propulsion 5 | . 3 1 . 1 Treads 3 | . 2 . . 1 Leg . | . . . . . Wheel 2 | . 1 1 . . Hover . | . . . . . Flight . | . . . . . Utility 6 | . 1 4 . 1 Device 2 | . . 2 . . Storage 1 | . 1 . . . Processor . | . . . . . Hackware . | . . . . . Protection 3 | . . 2 . 1 Artifact . | . . . . . Weapon 6 | 1 1 2 . 2 Energy Gun 1 | . . 1 . . Energy Cannon . | . . . . . Ballistic Gun 3 | 1 . 1 . 1 Ballistic Cannon 1 | . . . . 1 Launcher . | . . . . . Special Weapon 1 | . 1 . . . Impact Weapon . | . . . . . Slashing Weapon . | . . . . . Piercing Weapon . | . . . . . Special Melee Weapon . | . . . . . Unidentified Prototypes . | . . . . . Parts Lost 14 | . 1 1 . 12 Power 2 | . 1 . . 1 Propulsion 5 | . . 1 . 4 Utility 3 | . . . . 3 Weapon 4 | . . . . 4 Highest Loss Streak 12 | . 1 1 . 12 To Critical Strikes . | . . . . . Average Backups 9 | 6 5 9 13 11 Power 1 | 1 . 1 3 3 Propulsion 1 | 4 2 1 2 . Utility 2 | . . 2 3 2 Weapon 2 | 1 1 2 4 4 Tool/Special . | . . . . . Unused Backups 13 | . 6 . . 7 Power 3 | . 1 . . 2 Propulsion 4 | . 4 . . . Utility 3 | . 1 . . 2 Weapon 3 | . . . . 3 Tool/Special . | . . . . . Average Slot Usage (%) 90 | . 85 90 100 85 Engine 11 | . 14 11 11 7 Treads 12 | . 12 11 11 21 Wheel 10 | . 12 10 11 7 Device 12 | . . 14 22 14 Storage 11 | . 14 11 11 9 Protection 7 | . . 9 11 9 Energy Gun 8 | . 6 8 11 6 Ballistic Gun 11 | . 14 11 11 7 Special Weapon 2 | . 7 2 . . Peak Build Rating 17 | 6 7 14 14 17 Average Rating 10 | 6 5 10 14 14 On Entrance 9 | 6 6 6 14 14 Avg Prop Armor Cover (%) 10 | . 11 8 8 18 Naked Turns . | . . . . . Heaviest Build 42 | 12 27 42 42 42 Greatest Support 20 | 20 20 16 16 16 Greatest Overweight (x) 3 | . 2 3 2 2 Average Overweight (x) 1 | . 1 2 2 2 Largest Inventory Capacity 15 | 8 15 15 15 15 Average Capacity 14 | 8 14 15 15 15 Most Carried 14 | 6 7 14 13 12 Average Carried 9 | 6 5 9 13 11 Final Capacity 15 | 8 15 15 15 15 Final Carried 13 | 6 5 13 13 9 Class Distribution -------------------- 100% | Mutant Dominant Class ---------------- Mutant | -10/Materials Mutant | -9/Materials Mutant | -9/Mines Mutant | -8/Materials Resources | -11 -10 -9 -9 -8 ----------- Run | Yrd Mat Mat Min Mat Matter Collected 518 | 200 33 176 69 40 Remotely . | . . . . . Salvage Created 376 | . 38 191 31 116 Parts 28 | . 8 13 2 5 Haulers Intercepted . | . . . . . Recyclers Shooed . | . . . . . Parts Field Recycled . | . . . . . Retrieved Matter . | . . . . . Parts Self-Destructed . | . . . . . Prevented . | . . . . . Parts Restored . | . . . . . Kills | -11 -10 -9 -9 -8 ------- Run | Yrd Mat Mat Min Mat Combat Hostiles Destroyed 16 | . 3 8 1 4 Guns 15 | . 3 8 1 3 Cannons 1 | . . . . 1 Classes Destroyed 3 | . 1 1 1 . Swarmer 10 | . 3 6 . 1 Grunt 4 | . . . 1 3 Sentry 2 | . . 2 . . Best Kill Streak 5 | . 3 5 1 2 Combat Bots Only 5 | . 3 5 1 2 Max Kills in Single Turn 1 | . 1 1 1 1 Gunslinging . | . . . . . Exploded . | . . . . . Melee . | . . . . . Uniques/NPCs Destroyed . | . . . . . Combat | -11 -10 -9 -9 -8 -------- Run | Yrd Mat Mat Min Mat Hostile Shots Fired 216 | . 9 89 1 117 Missed 55 | . 3 28 . 24 Hits 161 | . 6 61 1 93 Projectile 161 | . 6 61 1 93 Critical Strikes 6 | . . 2 . 4 Damage Taken 2073 | . 182 583 11 1297 Core 402 | . 46 127 . 229 Absorbed by Shields 156 | . . 60 4 92 Core Remaining (%) 83 | 100 81 . 68 . Volleys Fired 62 | . 6 32 1 23 Largest 2 | . 2 2 2 2 Hottest 73 | . 70 70 73 73 Shots Fired 120 | . 12 63 2 43 Gun 108 | . 12 63 2 31 Cannon 12 | . . . . 12 Launcher . | . . . . . Special . | . . . . . Kinetic 73 | . 6 32 1 34 Thermal 47 | . 6 31 1 9 Explosive . | . . . . . Electromagnetic . | . . . . . Robot Hit Streak 12 | . 2 10 6 12 Robot Miss Streak 6 | . 3 6 . 3 Penetration Max . | . . . . . Secondary Targets 3 | . . 3 . . Max Gunslinging Chain 1 | . . 1 . . Shots Hit Robots 73 | . 5 32 2 34 Core Hits 27 | . 3 10 2 12 Critical Kills . | . . . . . Critical Parts Destroyed . | . . . . . Critical Strikes 1 | . . . . 1 Burn 1 | . . . . 1 Melee Attacks . | . . . . . Impact . | . . . . . Slashing . | . . . . . Piercing . | . . . . . Sneak Attacks . | . . . . . Combat Hostiles . | . . . . . Follow-up Attacks . | . . . . . Damage Inflicted 1061 | . 62 406 35 558 Guns 819 | . 62 406 35 316 Cannons 242 | . . . . 242 Explosions . | . . . . . Melee . | . . . . . Ramming . | . . . . . Kinetic 707 | . 24 193 22 468 Thermal 354 | . 38 213 13 90 Explosive . | . . . . . Electromagnetic . | . . . . . Impact . | . . . . . Slashing . | . . . . . Piercing . | . . . . . Highest Corruption . | . . . . . Average Corruption . | . . . . . Corruption Purged . | . . . . . Corruption Blocked . | . . . . . Overload Shots . | . . . . . Overflow Damage . | . . . . . Projectiles . | . . . . . Explosions . | . . . . . Melee . | . . . . . Knockbacks 7 | . . . . 7 Impact . | . . . . . Kinetic 7 | . . . . 7 Secondary . | . . . . . Self-Inflicted Damage . | . . . . . Shots . | . . . . . Rammed . | . . . . . Targets Rammed . | . . . . . Kicked . | . . . . . Crushed . | . . . . . Highest Temperature 501 | . 54 285 15 501 Average Temperature 132 | . 27 115 10 197 Received Heat Transfer 818 | . . 105 6 707 Effects 4 | . . 4 . . Energy Bleed 1 | . . 1 . . Interference 3 | . . 3 . . Siege Activations . | . . . . . Martial Activations . | . . . . . Shielding Activations . | . . . . . Robots Disrupted . | . . . . . Combat Hostiles . | . . . . . Robots Corrupted . | . . . . . Combat Hostiles . | . . . . . Parts Fried . | . . . . . Impact Corruptions . | . . . . . Robots Melted . | . . . . . Combat Hostiles . | . . . . . Parts Melted 1 | . . 1 . . Heat Transferred 1110 | . 111 629 37 333 Parts Sabotaged . | . . . . . Parts Stolen . | . . . . . Parts Stripped . | . . . . . Power Chain Reactions . | . . . . . Alert | -11 -10 -9 -9 -8 ------- Run | Yrd Mat Mat Min Mat Maximum Alert Level . | . . . . . Low Security (%) 100 | 100 100 100 100 100 Level 1 . | . . . . . Level 2 . | . . . . . Level 3 . | . . . . . Level 4 . | . . . . . Level 5 . | . . . . . High Security . | . . . . . Max Security . | . . . . . Peak Influence 90 | . 71 90 82 42 Initial 31 | . . 1 23 31 Average 31 | . 19 45 27 19 Influence Increases 547 | . 76 220 112 139 Destroy 0b10 Robot/C 400 | . 60 160 80 100 Destroy Leader 90 | . 10 30 20 30 Allied During Kill 14 | . . . 12 2 Successful Hack 10 | . 5 . . 5 Destroy Structure 3 | . 1 . . 2 Lose Combat Pursuer 30 | . . 30 . . Influence Decreases 537 | . 70 166 90 211 Entered New Map 93 | . . 5 37 51 Time Decay 310 | . 60 151 53 46 Lost Part 94 | . 10 10 . 74 Lost Ally 40 | . . . . 40 Squads Dispatched 1 | . . . . 1 Investigation . | . . . . . Extermination . | . . . . . Reinforcement 1 | . . . . 1 Assault . | . . . . . Garrison . | . . . . . Intercept . | . . . . . Searches Triggered . | . . . . . Construction Impeded . | . . . . . Haulers Reinforced . | . . . . . Active Scanning Responses . | . . . . . Cargo Convoy Interrupts . | . . . . . Stealth | -11 -10 -9 -9 -8 --------- Run | Yrd Mat Mat Min Mat Distress Signals . | . . . . . Communications Jammed . | . . . . . Distress Signals . | . . . . . Times Spotted 26 | . 3 11 4 8 Peak Tracking Total 7 | . 3 4 2 7 Tactical Retreats 1 | . . 1 . . Traps | -11 -10 -9 -9 -8 ------- Run | Yrd Mat Mat Min Mat Traps Triggered 3 | . 2 1 . . Indirectly . | . . . . . Trap Hack Attempts . | . . . . . Triggered . | . . . . . Disarmed . | . . . . . Reprogrammed . | . . . . . Reused . | . . . . . Traps Extracted . | . . . . . Installed . | . . . . . Triggered . | . . . . . Machines | -11 -10 -9 -9 -8 ---------- Run | Yrd Mat Mat Min Mat Machines Disabled . | . . . . . Max in Single Turn . | . . . . . Machines Repaired . | . . . . . Machines Dismantled . | . . . . . Machines Sabotaged . | . . . . . Overloaded Fab Kills . | . . . . . Hacking | -11 -10 -9 -9 -8 --------- Run | Yrd Mat Mat Min Mat Machines Accessed 3 | . 2 . . 1 Terminals 2 | . 1 . . 1 Fabricators . | . . . . . Repair Stations . | . . . . . Recycling Units 1 | . 1 . . . Scanalyzers . | . . . . . Garrison Access . | . . . . . Total Hacks 7 | . 4 . . 3 Successful 3 | . 2 . . 1 Failed 4 | . 2 . . 2 Catastrophic . | . . . . . Database Lockouts . | . . . . . Manual 4 | . 1 . . 3 Terminals 6 | . 3 . . 3 Fabricators . | . . . . . Repair Stations . | . . . . . Recycling Units 1 | . 1 . . . Scanalyzers . | . . . . . Garrison Access . | . . . . . Terminal Hacks . | . . . . . Fabricator Hacks . | . . . . . Repair Station Hacks . | . . . . . Recycling Unit Hacks 1 | . 1 . . . Report Inventory 1 | . 1 . . . Scanalyzer . | . . . . . Garrison Access Hacks . | . . . . . Unauthorized Hacks 2 | . 1 . . 1 Terminals 2 | . 1 . . 1 Botnet 2 | . 1 . . 1 Fabricators . | . . . . . Repair Stations . | . . . . . Recycling Units . | . . . . . Scanalyzers . | . . . . . Garrison Access . | . . . . . Data Cores Recovered . | . . . . . Used . | . . . . . Hacking Detections 3 | . 2 . . 1 Full Trace Events . | . . . . . Feedback Events . | . . . . . Feedback Blocked . | . . . . . Robot Schematics Acquired . | . . . . . Robots Built . | . . . . . Authchips . | . . . . . Time . | . . . . . Total Robot Build Rating . | . . . . . Part Schematics Acquired . | . . . . . Parts Built . | . . . . . Authchips . | . . . . . Time . | . . . . . Total Part Build Rating . | . . . . . Part Studies Acquired . | . . . . . Parts Repaired . | . . . . . Time . | . . . . . Parts Recycled . | . . . . . Recycled Matter . | . . . . . Retrieved Matter . | . . . . . Retrieved Components . | . . . . . Parts Scanalyzed . | . . . . . Part Schematics Acquired . | . . . . . Parts Damaged . | . . . . . Bothacking | -11 -10 -9 -9 -8 ------------ Run | Yrd Mat Mat Min Mat Used RIF Installer . | . . . . . Robots Hacked . | . . . . . Non-combat . | . . . . . Combat . | . . . . . Robot Hacks Applied . | . . . . . Relay Couplers Released . | . . . . . Fabnet Peak Effective % . | . . . . . Robots Rewired . | . . . . . Allies Hacked . | . . . . . Hacks Repelled . | . . . . . Allies | -11 -10 -9 -9 -8 -------- Run | Yrd Mat Mat Min Mat Total Allies 3 | . . . 3 . Largest Group 3 | . . . 3 2 Highest-Rated Group 40 | . . . 40 24 Highest-Rated Ally 16 | . . . 16 16 Total Orders . | . . . . . Ally Attacks 32 | . . . 28 4 Total Damage 304 | . . . 274 30 Kills 5 | . . . 4 1 Allies Corrupted . | . . . . . Allies Melted . | . . . . . Intel | -11 -10 -9 -9 -8 ------- Run | Yrd Mat Mat Min Mat Active Infowar (turns) 620 | . . 347 159 114 Seismic 620 | . . 347 159 114 Robot Analysis Total . | . . . . . Derelict Logs Recovered . | . . . . . Drone Launches . | . . . . . Drone Recoveries . | . . . . . Exploration | -11 -10 -9 -9 -8 ------------- Run | Yrd Mat Mat Min Mat Turns Passed 889 | 2 219 372 159 137 Spaces Moved 512 | 1 168 197 105 41 Core . | . . . . . Treads . | . . . . . Legs 13 | 1 12 . . . Wheels 499 | . 156 197 105 41 Hover . | . . . . . Flight . | . . . . . Fastest Speed 110 | 120 110 110 130 130 Average Speed 122 | 120 110 126 130 130 Slowest Speed 130 | 120 120 130 130 130 Overloaded Moves . | . . . . . Propulsion Burnouts . | . . . . . Robots Hopped . | . . . . . Potential Cave-ins . | . . . . . Cave-ins Triggered . | . . . . . Exploration Rate (%) 18 | 2 41 18 28 4 Regions Visited 4 Branch Regions 1 Pre-discovered Areas . | . . . . . Known Exits Taken . | . . . . . Unknown Exits Taken 4 | 1 1 1 1 . Scrap Searched 1 | . . . 1 . Spaces Dug . | . . . . . Terrain Destroyed 2 | . . . . 2 Melee . | . . . . . Projectile 2 | . . . . 2 AOE . | . . . . . Terrain Rammed . | . . . . . Walls Destroyed . | . . . . . Machines Disabled . | . . . . . Actions | -11 -10 -9 -9 -8 --------- Run | Yrd Mat Mat Min Mat Total 652 | 1 188 256 125 82 Wait 35 | . 3 . 20 12 Move 508 | . 167 196 104 41 Hop . | . . . . . Pick Up 19 | . 3 15 . 1 Fast Attach . | . . . . . Attach 12 | . 2 5 . 5 Detach . | . . . . . Swap 10 | 1 4 5 . . Drop 6 | . 3 3 . . Fire 62 | . 6 32 1 23 Melee . | . . . . . Ram . | . . . . . Kick . | . . . . . Crush . | . . . . . Escape Stasis . | . . . . . Rewire . | . . . . . Trap . | . . . . . Miscellaneous . | . . . . . Route ------- -11/Scrapyard -10/Materials -9/Materials -9/Mines -8/Materials History --------- Turn | Location | Event 3 | -11/Scrapyard | Discovered new exit (range 0) 3 | -11/Scrapyard | Entered Materials 194 | -10/Materials | Discovered new exit (range 4) 222 | -10/Materials | Entered another Materials area 222 | -9/Materials | Evolved 2 slots: Utility x2 308 | -9/Materials | Build established: Mutant 501 | -9/Materials | Discovered new exit (range 10) 594 | -9/Materials | Entered Mines 639 | -9/Mines | Assisted by bots powering up and referring to "LRC-V3" 723 | -9/Mines | Discovered new exit (range 11) 753 | -9/Mines | Entered Materials 753 | -8/Materials | Accompanied by 2 allies 753 | -8/Materials | Evolved 2 slots: Propulsion x2 890 | -8/Materials | Self-destructed Last Messages --------------- 00866_ G-47 Trooper knocked back. 00866_ Critical hit (Burn: +37). 00867_ Seismic Detector destroyed. 00867_ Com. Wheel destroyed. 00871_ Critical hit (Burn: +37). 00872_ G-47 Trooper knocked back. 00872_ Imp. Ion Engine destroyed. 00874_ Lgt. Treads destroyed. 00876_ Shotgun destroyed. 00878_ G-47 Trooper knocked back. 00878_ Penetrated by Slug. 00881_ M-13 Machinist repairs G-47 Trooper. 00881_ G-47 Trooper knocked back. 00883_ M-13 Machinist repairs G-47 Trooper Lgt. Nuclear Core. 00884_ G-47 Trooper destroyed. 00885_ Assault Cannon destroyed. 00887_ Critical hit (Burn: +37). 00887_ Penetrated by Slug. 00889_ Lgt. Assault Rifle destroyed. Map ----- +----------------------------------------------------+ | ?????????????????????????????????????????????????? | | ?????????????????????????????????????????????????? | | ?????????????????????????????????????????????????? | | ?????????????????????????????????????????????????? | | ?????????????????????????????????????????????????? | | ?????????????????????????????????????????????????? | | ?????????????????????????????????????????????????? | | ?????????????????????????????????????????????????? | | ?????????????????????????????????????????????????? | | ?????????????????????????????????????????????????? | | ?????????????????????????????????????????????????? | | ?????????????????????????????????????????????????? | | ?????????????????????????????????????????????????? | | ?????????????????????????????????????????????????? | | ?????????????????????????????????????????????????? | | ?????????????????????????????????????????????????? | | ?????????????????????????????????????????????????? | | ????????????????????????#########????????????????? | | ????????????????????????# #???????????????? | | ????????????????????????#" """" #???????????????? | | ??????????????????#######T """" #???????????????? | | ?????????????????? #"%"""" #???????????????? | | ??????????????????? """ +%g % #???????????????? | | ?????????????????????"" # g""""" #???????????????? | | ??????????????????????? # m"%""" #???????????????? | | ????????????????????????#@ % """ #???????????????? | | ????????????????????????#| =gh #???????????????? | | ????????????????#####+######/###########?????????? | | ????????????? %*%= *[= #?????????? | | ?????????????% [*!= #?????????? | | ?????????????* =[ #?????????? | | ?????????????# ############# ########?????????? | | ?????????????????????????????# #????????????????? | | ?????????????????????????????# #????????????????? | | ?????????????????????????????# #????????????????? | | ?????????????????????????????# #????????????????? | | ?????????????????????????????# #????????????????? | | ?????????????????????????????# #????????????????? | | ?????????????????????????????# #????????????????? | | ?????????????????????????????# #????????????????? | | ?????????????????????????????# #????????????????? | | ?????????????????????????????# #????????????????? | | ?????????????????????????????+ +????????????????? | | ?????????????????????????????? ?????????????????? | | ?????????????????????????????? ?????????????????? | | ?????????????????????????????? ?????????????????? | | ?????????????????????????????????????????????????? | | ?????????????????????????????????????????????????? | | ?????????????????????????????????????????????????? | | ?????????????????????????????????????????????????? | +----------------------------------------------------+ Best States ------------- Heat Dissipation 31 Energy Generation 12 Energy Capacity 265 Matter Stores 300 Matter Capacity 300 Sight Range 16 Terrain Scan Density 10 Armor Coverage 225 Evasion (%) 55 Recoil Reduction 2 Item Schematics ----------------- None Robot Schematics ------------------ None Fabricated ------------ Nothing Repaired ---------- Nothing Studied --------- None Alien Tech Used ----------------- None Achievements -------------- None Challenges ------------ None Game ------ Seed PulseTrapWall Manual? 0 Play Time 00:11:20 Cumulative 75.6 hours Start 2025.12.28 @ 12:42:04 End 2025.12.28 @ 12:51:52 Sessions 1 Manual Loads 0 Difficulty Rogue Special Mode None Game No. 116 Rogue 93 Adventurer 20 Explorer 3 Win Type - Total 0 Types 0/0/0/0/0/0/0/0/0/0 Lore% 44 Gallery% 41 Achievement% 30 Wizard Run 0 Options --------- Layout 1 ASCII 0 Keyboard 0 Movement Numpad Keybinds 0 Fullscreen 2 Font 24/Smallcaps Map View 50x35 Zoom Use 0% Tactical HUD 1 Map Filters NONE Filters NONE Steam 1 RUN: a54af480-f096-4a07-9438-5780e3f9607f